[Event "*** Titled Tuesday Blitz"]
[Site "Chess.com"]
[Date "2021.02.09"]
[Round "1"]
[White "Bulldog167"]
[Black "Orest_Vovk"]
[Result "1-0"]
[WhiteElo "2832"]
[BlackElo "2422"]
[TimeControl "180+1"]
[EndTime "10:07:22 PST"]
[Termination "Bulldog167 won on time"]

1. b3 {[%clk 0:02:58.6]} 1... a5 {[%clk 0:02:59.2]} 2. a4 {[%clk 0:02:57.9]}
2... g6 {[%clk 0:02:51.8]} 3. Bb2 {[%clk 0:02:58.1]} 3... Nf6 {[%clk 0:02:52]}
4. Nf3 {[%clk 0:02:57.9]} 4... Bg7 {[%clk 0:02:52.2]} 5. g3 {[%clk 0:02:58.5]}
5... Nh5 {[%clk 0:02:52.3]} 6. Bxg7 {[%clk 0:02:58.3]} 6... Nxg7 {[%clk
0:02:53.2]} 7. Bg2 {[%clk 0:02:58.8]} 7... O-O {[%clk 0:02:51.7]} 8. O-O {[%clk
0:02:59.1]} 8... Nc6 {[%clk 0:02:51]} 9. d4 {[%clk 0:02:58.2]} 9... d5 {[%clk
0:02:50.4]} 10. e3 {[%clk 0:02:42.5]} 10... Bf5 {[%clk 0:02:44.5]} 11. c4 {[%clk
0:02:34.4]} 11... dxc4 {[%clk 0:02:37.3]} 12. bxc4 {[%clk 0:02:35.3]} 12... Nb4
{[%clk 0:02:36.4]} 13. Na3 {[%clk 0:02:25.4]} 13... f6 {[%clk 0:02:25.4]} 14.
Qe2 {[%clk 0:02:21.3]} 14... Bd3 {[%clk 0:02:17]} 15. Qb2 {[%clk 0:02:20.7]}
15... Bxf1 {[%clk 0:02:15.8]} 16. Rxf1 {[%clk 0:02:21.6]} 16... Qd7 {[%clk
0:02:15.4]} 17. Qb3 {[%clk 0:02:20.9]} 17... c6 {[%clk 0:02:11.5]} 18. Rb1
{[%clk 0:02:20.1]} 18... Kh8 {[%clk 0:02:07.5]} 19. c5 {[%clk 0:02:19.2]} 19...
Rae8 {[%clk 0:01:51.3]} 20. Nc4 {[%clk 0:02:18.9]} 20... Qc7 {[%clk 0:01:41.8]}
21. Nxa5 {[%clk 0:02:01.9]} 21... Qxa5 {[%clk 0:01:41.2]} 22. Qxb4 {[%clk
0:02:02.4]} 22... Qxb4 {[%clk 0:01:41.1]} 23. Rxb4 {[%clk 0:02:03.3]} 23... Rb8
{[%clk 0:01:38.3]} 24. Nd2 {[%clk 0:02:00.3]} 24... Ne6 {[%clk 0:01:24.2]} 25.
Nc4 {[%clk 0:01:59.7]} 25... Nc7 {[%clk 0:01:22.8]} 26. Na5 {[%clk 0:01:52.4]}
26... Na6 {[%clk 0:01:13.3]} 27. Rb6 {[%clk 0:01:47.9]} 27... e5 {[%clk
0:01:03.6]} 28. Nxb7 {[%clk 0:01:43.7]} 28... exd4 {[%clk 0:01:01.6]} 29. exd4
{[%clk 0:01:44.6]} 29... Nc7 {[%clk 0:00:55.5]} 30. Bxc6 {[%clk 0:01:38.9]}
30... Ne6 {[%clk 0:00:55.1]} 31. Rb4 {[%clk 0:01:33]} 31... Rfc8 {[%clk
0:00:36.8]} 32. Bg2 {[%clk 0:01:22.3]} 32... Nxc5 {[%clk 0:00:22.4]} 33. dxc5
{[%clk 0:01:21.5]} 33... Rxc5 {[%clk 0:00:22.7]} 34. Nxc5 {[%clk 0:01:20.5]}
34... Rxb4 {[%clk 0:00:22.9]} 35. Bf1 {[%clk 0:01:08.7]} 35... Rb1 {[%clk
0:00:16.6]} 36. a5 {[%clk 0:01:07.4]} 36... Ra1 {[%clk 0:00:16.8]} 37. a6 {[%clk
0:01:07.8]} 37... Kg7 {[%clk 0:00:17.4]} 38. Kg2 {[%clk 0:01:05.8]} 38... Kf7
{[%clk 0:00:17.6]} 39. h4 {[%clk 0:01:05]} 39... Ke7 {[%clk 0:00:17.7]} 40. Be2
{[%clk 0:00:59.5]} 40... Kd6 {[%clk 0:00:17.3]} 41. Ne4+ {[%clk 0:00:58.7]}
41... Ke5 {[%clk 0:00:16.5]} 42. f3 {[%clk 0:00:51.7]} 42... Ra2 {[%clk
0:00:13.4]} 43. Kf2 {[%clk 0:00:52]} 43... h6 {[%clk 0:00:13.2]} 44. Nc3 {[%clk
0:00:49.8]} 44... Ra3 {[%clk 0:00:12]} 45. Nd1 {[%clk 0:00:49.2]} 45... g5
{[%clk 0:00:10]} 46. h5 {[%clk 0:00:46.8]} 46... f5 {[%clk 0:00:10.1]} 47. Ne3
{[%clk 0:00:46.7]} 47... Ra1 {[%clk 0:00:08.8]} 48. g4 {[%clk 0:00:45.1]} 48...
f4 {[%clk 0:00:06.9]} 49. Nf5 {[%clk 0:00:45.2]} 49... Kf6 {[%clk 0:00:05.1]}
50. Nxh6 {[%clk 0:00:45.1]} 1-0

[Event "*** Titled Tuesday Blitz"]
[Site "Chess.com"]
[Date "2021.02.09"]
[Round "1"]
[White "anon102030"]
[Black "JQuiroga18"]
[Result "0-1"]
[WhiteElo "2735"]
[BlackElo "2414"]
[TimeControl "180+1"]
[EndTime "10:07:22 PST"]
[Termination "JQuiroga18 won by checkmate"]

1. e4 {[%clk 0:02:57.6]} 1... e5 {[%clk 0:02:59.6]} 2. Nc3 {[%clk 0:02:55.8]}
2... Nc6 {[%clk 0:02:56.7]} 3. g3 {[%clk 0:02:55.5]} 3... Nf6 {[%clk 0:02:56.3]}
4. Bg2 {[%clk 0:02:55.8]} 4... d6 {[%clk 0:02:49.8]} 5. d3 {[%clk 0:02:55.8]}
5... Be7 {[%clk 0:02:48.4]} 6. f4 {[%clk 0:02:53.6]} 6... O-O {[%clk 0:02:48.3]}
7. Nf3 {[%clk 0:02:52]} 7... Re8 {[%clk 0:02:43.1]} 8. O-O {[%clk 0:02:51.6]}
8... Bf8 {[%clk 0:02:41.7]} 9. h3 {[%clk 0:02:32.4]} 9... a6 {[%clk 0:02:17.6]}
10. g4 {[%clk 0:02:30.5]} 10... exf4 {[%clk 0:01:59.7]} 11. Bxf4 {[%clk
0:02:31.4]} 11... d5 {[%clk 0:01:59.9]} 12. e5 {[%clk 0:02:29.3]} 12... d4
{[%clk 0:01:59.8]} 13. exf6 {[%clk 0:02:24.9]} 13... dxc3 {[%clk 0:01:59.6]} 14.
fxg7 {[%clk 0:02:25.8]} 14... Bxg7 {[%clk 0:01:59.3]} 15. bxc3 {[%clk
0:02:24.5]} 15... Bxc3 {[%clk 0:01:57.2]} 16. Rb1 {[%clk 0:02:24.7]} 16... Bg7
{[%clk 0:01:53.9]} 17. Ng5 {[%clk 0:02:22.7]} 17... Nd4 {[%clk 0:01:42.6]} 18.
Nxf7 {[%clk 0:02:18.4]} 18... Ne2+ {[%clk 0:01:14]} 19. Kh1 {[%clk 0:02:15.5]}
19... Qe7 {[%clk 0:01:09.2]} 20. Bh2 {[%clk 0:01:45.6]} 20... Nc3 {[%clk
0:01:06.9]} 21. Qe1 {[%clk 0:01:10.1]} 21... Nxb1 {[%clk 0:01:06.2]} 22. Qxb1
{[%clk 0:01:10]} 22... c6 {[%clk 0:01:03.5]} 23. Nd6 {[%clk 0:00:56.3]} 23...
Rf8 {[%clk 0:01:03.2]} 24. Re1 {[%clk 0:00:56.6]} 24... Qf6 {[%clk 0:00:56.9]}
25. Qb3+ {[%clk 0:00:53.9]} 25... Kh8 {[%clk 0:00:55.7]} 26. Rf1 {[%clk
0:00:54.1]} 26... Be6 {[%clk 0:00:46]} 27. Rxf6 {[%clk 0:00:52]} 27... Bxb3
{[%clk 0:00:46.2]} 28. Rxf8+ {[%clk 0:00:52.7]} 28... Rxf8 {[%clk 0:00:44.3]}
29. axb3 {[%clk 0:00:52.8]} 29... Rf2 {[%clk 0:00:44.8]} 30. c4 {[%clk 0:00:48]}
30... Rb2 {[%clk 0:00:44.5]} 31. Be4 {[%clk 0:00:34.9]} 31... Rxb3 {[%clk
0:00:44.2]} 32. Bf4 {[%clk 0:00:34.9]} 32... a5 {[%clk 0:00:43.5]} 33. Nf5
{[%clk 0:00:29.7]} 33... Bf6 {[%clk 0:00:39]} 34. g5 {[%clk 0:00:29.1]} 34...
Bc3 {[%clk 0:00:38.1]} 35. d4 {[%clk 0:00:27.9]} 35... a4 {[%clk 0:00:32.8]} 36.
d5 {[%clk 0:00:12.5]} 36... cxd5 {[%clk 0:00:30.3]} 37. cxd5 {[%clk 0:00:08.1]}
37... a3 {[%clk 0:00:30.2]} 38. d6 {[%clk 0:00:04.5]} 38... a2 {[%clk
0:00:29.3]} 39. d7 {[%clk 0:00:04.1]} 39... a1=Q+ {[%clk 0:00:28.6]} 40. Kg2
{[%clk 0:00:05]} 40... Rb2+ {[%clk 0:00:28.6]} 41. Kf3 {[%clk 0:00:04.4]} 41...
Qd1+ {[%clk 0:00:20.3]} 42. Kg3 {[%clk 0:00:02.1]} 42... Be1# {[%clk 0:00:17.8]}
0-1

[Event "*** Titled Tuesday Blitz"]
[Site "Chess.com"]
[Date "2021.02.09"]
[Round "1"]
[White "federicosellitti"]
[Black "BilodeauA"]
[Result "0-1"]
[WhiteElo "2449"]
[BlackElo "2887"]
[TimeControl "180+1"]
[EndTime "10:07:23 PST"]
[Termination "BilodeauA won by resignation"]

1. e4 {[%clk 0:02:52.8]} 1... c5 {[%clk 0:02:56.6]} 2. Nc3 {[%clk 0:02:51.5]}
2... a6 {[%clk 0:02:51.3]} 3. g3 {[%clk 0:02:52.3]} 3... b5 {[%clk 0:02:51.1]}
4. Bg2 {[%clk 0:02:53]} 4... Bb7 {[%clk 0:02:51.6]} 5. d3 {[%clk 0:02:53.3]}
5... e6 {[%clk 0:02:50.2]} 6. Be3 {[%clk 0:02:48.9]} 6... Nc6 {[%clk 0:02:48.6]}
7. Nge2 {[%clk 0:02:41.9]} 7... Nf6 {[%clk 0:02:47.3]} 8. h3 {[%clk 0:02:40.6]}
8... d6 {[%clk 0:02:43.2]} 9. Qd2 {[%clk 0:02:39.3]} 9... Be7 {[%clk 0:02:43]}
10. O-O {[%clk 0:02:39.3]} 10... O-O {[%clk 0:02:42.9]} 11. f4 {[%clk
0:02:22.6]} 11... d5 {[%clk 0:02:40.8]} 12. e5 {[%clk 0:02:17.9]} 12... d4
{[%clk 0:02:05.5]} 13. exf6 {[%clk 0:02:14.9]} 13... Bxf6 {[%clk 0:02:06.4]} 14.
Ne4 {[%clk 0:01:23.9]} 14... dxe3 {[%clk 0:02:00.2]} 15. Nxf6+ {[%clk
0:01:24.1]} 15... Qxf6 {[%clk 0:02:01.1]} 16. Qxe3 {[%clk 0:01:24.8]} 16... Qxb2
{[%clk 0:01:39.2]} 17. c3 {[%clk 0:01:25.2]} 17... Na5 {[%clk 0:01:21.3]} 18.
Bxb7 {[%clk 0:01:15.5]} 18... Nxb7 {[%clk 0:01:17.6]} 19. f5 {[%clk 0:01:16.1]}
19... exf5 {[%clk 0:01:16.9]} 20. Rae1 {[%clk 0:00:38.7]} 20... Rae8 {[%clk
0:01:14.6]} 21. Qf3 {[%clk 0:00:39.2]} 21... Qxa2 {[%clk 0:01:04.8]} 22. Nf4
{[%clk 0:00:20.6]} 22... Nd6 {[%clk 0:00:53.2]} 23. Nd5 {[%clk 0:00:18.7]} 23...
Qd2 {[%clk 0:00:30.7]} 24. Rxe8 {[%clk 0:00:18.4]} 24... Rxe8 {[%clk 0:00:29.9]}
25. g4 {[%clk 0:00:09.5]} 25... c4 {[%clk 0:00:24.8]} 26. dxc4 {[%clk
0:00:06.6]} 26... bxc4 {[%clk 0:00:20.3]} 27. gxf5 {[%clk 0:00:06.3]} 27... Ne4
{[%clk 0:00:20.8]} 28. Nf4 {[%clk 0:00:04]} 28... Ng5 {[%clk 0:00:19.7]} 29. Qg4
{[%clk 0:00:03.9]} 29... Qe3+ {[%clk 0:00:18.1]} 30. Rf2 {[%clk 0:00:03.9]}
30... f6 {[%clk 0:00:15.6]} 31. Kg2 {[%clk 0:00:03.5]} 31... Qe4+ {[%clk
0:00:15.6]} 32. Kh2 {[%clk 0:00:03.9]} 32... Qe5 {[%clk 0:00:15.8]} 33. Kg2
{[%clk 0:00:03.9]} 33... Qxc3 {[%clk 0:00:14.2]} 34. h4 {[%clk 0:00:03.9]} 34...
Ne4 {[%clk 0:00:14.7]} 35. Nh5 {[%clk 0:00:03.5]} 35... Re7 {[%clk 0:00:11.4]}
36. Re2 {[%clk 0:00:04.2]} 36... Qd3 {[%clk 0:00:08.9]} 37. Rxe4 {[%clk
0:00:04.5]} 37... Qxe4+ {[%clk 0:00:08.7]} 0-1

[Event "*** Titled Tuesday Blitz"]
[Site "Chess.com"]
[Date "2021.02.09"]
[Round "1"]
[White "poppy73"]
[Black "OriTaichman"]
[Result "0-1"]
[WhiteElo "2215"]
[BlackElo "2533"]
[TimeControl "180+1"]
[EndTime "10:07:24 PST"]
[Termination "OriTaichman won on time"]

1. e4 {[%clk 0:03:00.5]} 1... c5 {[%clk 0:02:58.8]} 2. Nf3 {[%clk 0:03:00]} 2...
Nc6 {[%clk 0:02:59.1]} 3. d4 {[%clk 0:03:00.2]} 3... cxd4 {[%clk 0:03:00]} 4.
Nxd4 {[%clk 0:02:59.7]} 4... d5 {[%clk 0:03:00.5]} 5. Nxc6 {[%clk 0:02:35.4]}
5... bxc6 {[%clk 0:02:58.9]} 6. exd5 {[%clk 0:02:35.5]} 6... Qxd5 {[%clk
0:02:59.5]} 7. Nc3 {[%clk 0:02:16]} 7... Qxd1+ {[%clk 0:02:57.8]} 8. Nxd1 {[%clk
0:02:15.2]} 8... e5 {[%clk 0:02:57.3]} 9. b3 {[%clk 0:02:10]} 9... Bb4+ {[%clk
0:02:24.6]} 10. c3 {[%clk 0:02:09]} 10... Bc5 {[%clk 0:02:24.8]} 11. Ne3 {[%clk
0:02:00.2]} 11... Be6 {[%clk 0:02:12.7]} 12. b4 {[%clk 0:01:42.3]} 12... Bb6
{[%clk 0:02:01.3]} 13. Nc4 {[%clk 0:01:41.7]} 13... f6 {[%clk 0:01:48.7]} 14. a4
{[%clk 0:01:31.8]} 14... Ne7 {[%clk 0:01:41.4]} 15. a5 {[%clk 0:01:27.1]} 15...
Bc7 {[%clk 0:01:41.2]} 16. Be3 {[%clk 0:01:25.7]} 16... Nd5 {[%clk 0:01:37.3]}
17. Bd2 {[%clk 0:01:18.7]} 17... Ke7 {[%clk 0:01:31.1]} 18. O-O-O {[%clk
0:01:17.5]} 18... Rhd8 {[%clk 0:01:29.6]} 19. Be2 {[%clk 0:01:04]} 19... f5
{[%clk 0:01:22.9]} 20. Ne3 {[%clk 0:00:58.8]} 20... f4 {[%clk 0:01:16.2]} 21.
Nxd5+ {[%clk 0:00:34]} 21... cxd5 {[%clk 0:01:17.1]} 22. g3 {[%clk 0:00:32.7]}
22... g5 {[%clk 0:01:10]} 23. gxf4 {[%clk 0:00:31.7]} 23... gxf4 {[%clk
0:01:09.3]} 24. Rhg1 {[%clk 0:00:32.3]} 24... Rg8 {[%clk 0:01:09]} 25. Kb2
{[%clk 0:00:21.1]} 25... e4 {[%clk 0:01:06.9]} 26. Rdf1 {[%clk 0:00:11.9]} 26...
f3 {[%clk 0:00:59.2]} 27. Bd1 {[%clk 0:00:11.9]} 27... Bxh2 {[%clk 0:00:58.2]}
28. Rh1 {[%clk 0:00:11.4]} 28... Rg2 {[%clk 0:00:57.3]} 29. Be3 {[%clk
0:00:07.7]} 29... h5 {[%clk 0:00:53.8]} 30. b5 {[%clk 0:00:06.8]} 30... h4
{[%clk 0:00:49.1]} 31. b6 {[%clk 0:00:05.2]} 31... axb6 {[%clk 0:00:49.4]} 32.
axb6 {[%clk 0:00:05.6]} 32... h3 {[%clk 0:00:48.8]} 33. Bb3 {[%clk 0:00:03.2]}
33... Rb8 {[%clk 0:00:46.6]} 34. Bc5+ {[%clk 0:00:02.8]} 34... Kd7 {[%clk
0:00:46.1]} 35. Ba4+ {[%clk 0:00:02.3]} 35... Kd8 {[%clk 0:00:44.5]} 36. Bc6
{[%clk 0:00:02.4]} 36... Bd6 {[%clk 0:00:38.9]} 37. Bxd6 {[%clk 0:00:02.1]}
37... Rxb6+ {[%clk 0:00:38.7]} 38. Kc2 {[%clk 0:00:02.2]} 38... Rxc6 {[%clk
0:00:38.7]} 39. Bg3 {[%clk 0:00:02.3]} 39... d4 {[%clk 0:00:38.4]} 40. Kd2
{[%clk 0:00:02.1]} 40... Rxc3 {[%clk 0:00:29.1]} 41. Be5 {[%clk 0:00:01.3]}
41... e3+ {[%clk 0:00:28.9]} 0-1

[Event "*** Titled Tuesday Blitz"]
[Site "Chess.com"]
[Date "2021.02.09"]
[Round "1"]
[White "paladin_ll"]
[Black "Atco84"]
[Result "0-1"]
[WhiteElo "2136"]
[BlackElo "2503"]
[TimeControl "180+1"]
[EndTime "10:07:27 PST"]
[Termination "Atco84 won by resignation"]

1. Nf3 {[%clk 0:02:58.5]} 1... e6 {[%clk 0:02:59.1]} 2. c4 {[%clk 0:02:56.6]}
2... c5 {[%clk 0:02:55.9]} 3. Nc3 {[%clk 0:02:55.8]} 3... Nf6 {[%clk 0:02:54.2]}
4. g3 {[%clk 0:02:54.3]} 4... d5 {[%clk 0:02:52]} 5. cxd5 {[%clk 0:02:53.9]}
5... exd5 {[%clk 0:02:51.4]} 6. d4 {[%clk 0:02:53.6]} 6... Nc6 {[%clk
0:02:48.6]} 7. Bg2 {[%clk 0:02:53]} 7... Be6 {[%clk 0:02:47.5]} 8. O-O {[%clk
0:02:52.2]} 8... Be7 {[%clk 0:02:47.4]} 9. dxc5 {[%clk 0:02:51.2]} 9... Bxc5
{[%clk 0:02:47.1]} 10. Bg5 {[%clk 0:02:50.8]} 10... Be7 {[%clk 0:02:28.7]} 11.
Nd4 {[%clk 0:02:45.2]} 11... h6 {[%clk 0:01:57.4]} 12. Be3 {[%clk 0:02:37.1]}
12... O-O {[%clk 0:01:44.4]} 13. Rc1 {[%clk 0:02:32.6]} 13... Ne5 {[%clk
0:01:23.6]} 14. Nxe6 {[%clk 0:02:20.9]} 14... fxe6 {[%clk 0:01:22.9]} 15. Bd4
{[%clk 0:02:20.6]} 15... Nc6 {[%clk 0:01:13.5]} 16. e3 {[%clk 0:02:13.5]} 16...
e5 {[%clk 0:01:09.1]} 17. Bxe5 {[%clk 0:02:09.5]} 17... Nxe5 {[%clk 0:01:08.8]}
18. Nxd5 {[%clk 0:02:07.7]} 18... Nxd5 {[%clk 0:01:07.9]} 19. Bxd5+ {[%clk
0:02:00.7]} 19... Kh8 {[%clk 0:01:08]} 20. Qb3 {[%clk 0:01:51.8]} 20... Nf3+
{[%clk 0:00:56.2]} 21. Bxf3 {[%clk 0:01:45.5]} 21... Rxf3 {[%clk 0:00:57.1]} 22.
Qxb7 {[%clk 0:01:43.6]} 22... Rf6 {[%clk 0:00:36.6]} 23. Rc7 {[%clk 0:01:27.5]}
23... Bf8 {[%clk 0:00:31.9]} 24. Rd7 {[%clk 0:01:22.2]} 24... Qb8 {[%clk
0:00:26]} 25. Rc1 {[%clk 0:01:15.6]} 25... a5 {[%clk 0:00:21.7]} 26. b3 {[%clk
0:01:08.7]} 26... Qxb7 {[%clk 0:00:19.6]} 27. Rxb7 {[%clk 0:01:08]} 27... a4
{[%clk 0:00:20.3]} 28. Rcc7 {[%clk 0:01:01.9]} 28... Kg8 {[%clk 0:00:19.8]} 29.
Ra7 {[%clk 0:00:57.4]} 29... Rxa7 {[%clk 0:00:18.8]} 30. Rxa7 {[%clk 0:00:58.3]}
30... a3 {[%clk 0:00:19.6]} 31. Rc7 {[%clk 0:00:54.5]} 31... Rd6 {[%clk
0:00:19.8]} 32. Rc2 {[%clk 0:00:53.8]} 32... Rd1+ {[%clk 0:00:19.7]} 33. Kg2
{[%clk 0:00:52.2]} 33... Rb1 {[%clk 0:00:20.6]} 34. Re2 {[%clk 0:00:47.2]} 34...
Rb2 {[%clk 0:00:21.5]} 35. Kf3 {[%clk 0:00:48.1]} 35... Bc5 {[%clk 0:00:19.5]}
36. h4 {[%clk 0:00:44.9]} 36... g5 {[%clk 0:00:19.3]} 37. hxg5 {[%clk
0:00:44.7]} 37... hxg5 {[%clk 0:00:20.2]} 38. g4 {[%clk 0:00:45.5]} 38... Kf7
{[%clk 0:00:20.6]} 39. e4 {[%clk 0:00:41.1]} 39... Ke6 {[%clk 0:00:21.1]} 40. e5
{[%clk 0:00:41]} 40... Bd4 {[%clk 0:00:21.4]} 41. Re4 {[%clk 0:00:39]} 41...
Bxe5 {[%clk 0:00:20.3]} 42. b4 {[%clk 0:00:35.2]} 42... Rxa2 {[%clk 0:00:19.8]}
43. b5 {[%clk 0:00:35.2]} 43... Rb2 {[%clk 0:00:19.8]} 44. Ra4 {[%clk
0:00:35.2]} 44... Bd6 {[%clk 0:00:20.4]} 45. Re4+ {[%clk 0:00:32.4]} 45... Kd5
{[%clk 0:00:20.1]} 46. Re2 {[%clk 0:00:30.7]} 46... Rxe2 {[%clk 0:00:18.8]} 0-1

[Event "*** Titled Tuesday Blitz"]
[Site "Chess.com"]
[Date "2021.02.09"]
[Round "1"]
[White "GelmanAlexander"]
[Black "Godzillator"]
[Result "1-0"]
[WhiteElo "2593"]
[BlackElo "2284"]
[TimeControl "180+1"]
[EndTime "10:07:28 PST"]
[Termination "GelmanAlexander won by resignation"]

1. d4 {[%clk 0:02:58.6]} 1... d5 {[%clk 0:02:59.7]} 2. Nc3 {[%clk 0:02:58.2]}
2... c6 {[%clk 0:02:59.3]} 3. Bf4 {[%clk 0:02:58.1]} 3... Nf6 {[%clk 0:02:58.5]}
4. f3 {[%clk 0:02:58.4]} 4... e6 {[%clk 0:02:53.3]} 5. e4 {[%clk 0:02:58.3]}
5... Bb4 {[%clk 0:02:53.4]} 6. Qd3 {[%clk 0:02:57.9]} 6... O-O {[%clk
0:02:48.7]} 7. Ne2 {[%clk 0:02:55.4]} 7... b6 {[%clk 0:02:48.5]} 8. O-O-O {[%clk
0:02:53.9]} 8... Ba6 {[%clk 0:02:48.5]} 9. Qe3 {[%clk 0:02:53.9]} 9... Nbd7
{[%clk 0:02:40.5]} 10. Bg5 {[%clk 0:02:30.8]} 10... Qc7 {[%clk 0:02:32.9]} 11.
a3 {[%clk 0:02:28.2]} 11... Bxc3 {[%clk 0:02:25.5]} 12. Nxc3 {[%clk 0:02:28.2]}
12... Bxf1 {[%clk 0:02:25.5]} 13. Rhxf1 {[%clk 0:02:28.5]} 13... c5 {[%clk
0:02:21.5]} 14. e5 {[%clk 0:02:14.9]} 14... Ne8 {[%clk 0:02:19.2]} 15. Be7
{[%clk 0:02:09.1]} 15... cxd4 {[%clk 0:02:18.9]} 16. Qxd4 {[%clk 0:02:06.9]}
16... Nxe5 {[%clk 0:02:18.1]} 17. Bxf8 {[%clk 0:02:06]} 17... Kxf8 {[%clk
0:02:17.1]} 18. f4 {[%clk 0:02:02.5]} 18... Nc4 {[%clk 0:02:16.9]} 19. f5 {[%clk
0:02:00.9]} 19... Kg8 {[%clk 0:02:16.1]} 20. fxe6 {[%clk 0:01:52.5]} 20... fxe6
{[%clk 0:02:16.2]} 21. Nxd5 {[%clk 0:01:53]} 21... Qd7 {[%clk 0:01:31.7]} 22.
Qxc4 {[%clk 0:01:22.6]} 22... exd5 {[%clk 0:01:30.9]} 23. Qxd5+ {[%clk
0:01:05.8]} 23... Qxd5 {[%clk 0:01:30.9]} 24. Rxd5 {[%clk 0:01:06.7]} 24... Nf6
{[%clk 0:01:31.1]} 25. Rd6 {[%clk 0:01:03.8]} 25... Rc8 {[%clk 0:01:30.8]} 26.
Re1 {[%clk 0:01:00.4]} 26... Kf7 {[%clk 0:01:29.3]} 27. c3 {[%clk 0:00:58.7]}
27... h6 {[%clk 0:01:28.4]} 28. h3 {[%clk 0:00:58.7]} 28... Rc4 {[%clk
0:01:27.3]} 29. Kc2 {[%clk 0:00:57.5]} 29... Rc5 {[%clk 0:01:23.2]} 30. Re2
{[%clk 0:00:57.1]} 30... Rg5 {[%clk 0:01:18.2]} 31. Rc6 {[%clk 0:00:54.6]} 31...
Kg6 {[%clk 0:01:16]} 32. b4 {[%clk 0:00:50.8]} 32... Rg3 {[%clk 0:01:10.5]} 33.
a4 {[%clk 0:00:49.5]} 33... Kh5 {[%clk 0:01:02.1]} 34. Rc7 {[%clk 0:00:44.9]}
34... g5 {[%clk 0:00:57.4]} 35. Rxa7 {[%clk 0:00:44.6]} 35... Nd5 {[%clk
0:00:57.3]} 36. Kb2 {[%clk 0:00:32.5]} 36... Nxc3 {[%clk 0:00:54.2]} 37. Rc2
{[%clk 0:00:32.7]} 37... Nd5 {[%clk 0:00:52.5]} 38. b5 {[%clk 0:00:32.6]} 38...
Nb4 {[%clk 0:00:49.6]} 39. Rd2 {[%clk 0:00:32.8]} 39... Nd3+ {[%clk 0:00:47.7]}
40. Kc3 {[%clk 0:00:31.2]} 40... Nc5+ {[%clk 0:00:46.4]} 41. Kc4 {[%clk
0:00:30.6]} 41... Ra3 {[%clk 0:00:43.3]} 42. Kd5 {[%clk 0:00:28.5]} 42... Nxa4
{[%clk 0:00:41.1]} 43. Kc6 {[%clk 0:00:25.6]} 43... Rc3+ {[%clk 0:00:39.6]} 44.
Kb7 {[%clk 0:00:23.7]} 44... Rc4 {[%clk 0:00:39.3]} 45. Rd6 {[%clk 0:00:21.5]}
45... Rb4 {[%clk 0:00:38.4]} 46. g4+ {[%clk 0:00:21.1]} 46... Kh4 {[%clk
0:00:38]} 47. Rxh6+ {[%clk 0:00:22]} 47... Kg3 {[%clk 0:00:38.5]} 48. Rxa4
{[%clk 0:00:19.3]} 48... Rxa4 {[%clk 0:00:37]} 49. Kxb6 {[%clk 0:00:20.2]} 49...
Ra1 {[%clk 0:00:33.6]} 50. Kb7 {[%clk 0:00:19.5]} 50... Rb1 {[%clk 0:00:32.9]}
51. b6 {[%clk 0:00:20.1]} 51... Rc1 {[%clk 0:00:32.9]} 52. Kb8 {[%clk
0:00:20.4]} 52... Rb1 {[%clk 0:00:33.2]} 53. b7 {[%clk 0:00:20.9]} 53... Rc1
{[%clk 0:00:33.3]} 54. Ka7 {[%clk 0:00:20.9]} 54... Ra1+ {[%clk 0:00:33.2]} 55.
Ra6 {[%clk 0:00:21.1]} 1-0

[Event "*** Titled Tuesday Blitz"]
[Site "Chess.com"]
[Date "2021.02.09"]
[Round "1"]
[White "Noam_Vitenberg"]
[Black "Dedic8"]
[Result "1-0"]
[WhiteElo "2438"]
[BlackElo "2818"]
[TimeControl "180+1"]
[EndTime "10:07:31 PST"]
[Termination "Noam_Vitenberg won by resignation"]

1. Nf3 {[%clk 0:02:58.7]} 1... Nf6 {[%clk 0:02:59.9]} 2. g3 {[%clk 0:02:56.6]}
2... d5 {[%clk 0:03:00.1]} 3. Bg2 {[%clk 0:02:57]} 3... c5 {[%clk 0:02:59.9]} 4.
O-O {[%clk 0:02:57.4]} 4... e6 {[%clk 0:02:59.5]} 5. d4 {[%clk 0:02:56.7]} 5...
cxd4 {[%clk 0:02:58]} 6. Nxd4 {[%clk 0:02:56.6]} 6... Be7 {[%clk 0:02:57.8]} 7.
c4 {[%clk 0:02:47.7]} 7... O-O {[%clk 0:02:55.7]} 8. cxd5 {[%clk 0:02:44.9]}
8... exd5 {[%clk 0:02:55]} 9. Nc3 {[%clk 0:02:43.2]} 9... Nc6 {[%clk 0:02:51.3]}
10. Bg5 {[%clk 0:02:34.3]} 10... Be6 {[%clk 0:02:49.9]} 11. Rc1 {[%clk
0:02:28.3]} 11... Rc8 {[%clk 0:02:48.3]} 12. Qa4 {[%clk 0:02:05.5]} 12... Nxd4
{[%clk 0:02:18.3]} 13. Qxd4 {[%clk 0:02:04.2]} 13... Qa5 {[%clk 0:02:16.1]} 14.
Rfd1 {[%clk 0:01:45.8]} 14... Rc4 {[%clk 0:02:14.4]} 15. Qd3 {[%clk 0:01:43.7]}
15... Rfc8 {[%clk 0:01:26.8]} 16. Ra1 {[%clk 0:01:19.9]} 16... d4 {[%clk
0:01:16.2]} 17. Bxf6 {[%clk 0:01:16]} 17... Bxf6 {[%clk 0:01:17.1]} 18. Ne4
{[%clk 0:01:15.7]} 18... Be7 {[%clk 0:01:17.5]} 19. Nd2 {[%clk 0:01:07.8]} 19...
Rc2 {[%clk 0:01:04.2]} 20. Bxb7 {[%clk 0:01:00]} 20... R8c7 {[%clk 0:01:00.5]}
21. Be4 {[%clk 0:00:50.2]} 21... Rxb2 {[%clk 0:00:57]} 22. Qxd4 {[%clk
0:00:37.6]} 22... Bf6 {[%clk 0:00:55.1]} 23. Qd6 {[%clk 0:00:30.9]} 23... Rd7
{[%clk 0:00:51.1]} 24. Nc4 {[%clk 0:00:23.3]} 24... Qd8 {[%clk 0:00:19.6]} 25.
Qxd7 {[%clk 0:00:18.1]} 25... Bxd7 {[%clk 0:00:20.5]} 26. Nxb2 {[%clk
0:00:18.5]} 26... Bxb2 {[%clk 0:00:20.6]} 27. Rab1 {[%clk 0:00:19.1]} 27... Be5
{[%clk 0:00:09.2]} 28. Bc6 {[%clk 0:00:19.1]} 28... h6 {[%clk 0:00:09.3]} 29.
Rxd7 {[%clk 0:00:18.9]} 29... Qf6 {[%clk 0:00:08.8]} 30. Bd5 {[%clk 0:00:17.6]}
30... Qa6 {[%clk 0:00:04.8]} 31. Rxf7 {[%clk 0:00:15.9]} 31... Kh7 {[%clk
0:00:02.8]} 32. Be4+ {[%clk 0:00:15.2]} 32... Kg8 {[%clk 0:00:03.3]} 33. Bd5
{[%clk 0:00:15.5]} 33... Kh7 {[%clk 0:00:03.4]} 34. Be4+ {[%clk 0:00:12.7]}
34... Kg8 {[%clk 0:00:03.4]} 35. Rf5 {[%clk 0:00:13.6]} 35... Qxe2 {[%clk
0:00:03.1]} 36. Rxe5 {[%clk 0:00:12.7]} 36... Qd2 {[%clk 0:00:03.6]} 37. Bd5+
{[%clk 0:00:09.6]} 37... Kh7 {[%clk 0:00:03.8]} 38. Be4+ {[%clk 0:00:09.8]}
38... Kg8 {[%clk 0:00:04.3]} 39. Rf5 {[%clk 0:00:10.2]} 39... Qxa2 {[%clk
0:00:03.4]} 40. Rb8+ {[%clk 0:00:09.8]} 40... Kh7 {[%clk 0:00:03.3]} 41. Ra5+
{[%clk 0:00:10.4]} 1-0